fUST/lending_fUST_20250817
["ID","MTS","AMOUNT","RATE_DAILY","PERIOD"]
[379885079,1755431458443,-151.0,0.0002126,2]
[379885080,1755431458548,-151.0,0.00021265,2]
[379885081,1755431458557,-151.0,0.00021265,2]
[379885082,1755431458567,-480.0,0.00021265,2]
[379885083,1755431458576,-649.06,0.00021265,2]
[379885084,1755431458585,-583.91,0.00021265,2]
[379885085,1755431458595,-480.0,0.00021265,2]
[379885086,1755431458604,-1934.34,0.00021265,2]
[379885087,1755431458615,-480.0,0.00021265,2]
[379885088,1755431458625,-151.0,0.00021266,2]
[379885089,1755431458635,-151.318924,0.00021269,2]
[379885090,1755431458644,-291.857765,0.00021269,2]
[379885091,1755431458654,-291.857765,0.00021269,2]
[379885092,1755431458664,-2362.3,0.00021269,2]
[379885093,1755431458673,-3000.0,0.0002127,2]
[379885094,1755431458683,-505.08806189,0.00021273,2]
[379885095,1755431458692,-500.0,0.00021273,2]
[379885096,1755431458702,-500.0,0.00021273,2]
[379885097,1755431458712,-541.71037648,0.00021273,2]
[379885098,1755431458721,-500.0,0.00021273,2]
[379885099,1755431458732,-151.0,0.00021273,2]
[379885100,1755431458741,-151.0,0.00021274,2]
[379885101,1755431458751,-151.0,0.00021274,2]
[379885102,1755431458760,-151.0,0.00021274,2]
[379885103,1755431458770,-151.0,0.00021274,2]
[379885104,1755431458780,-500.0,0.00021274,2]
[379885105,1755431458790,-151.0,0.00021274,2]
[379885106,1755431458800,-500.0,0.00021274,2]
[379885107,1755431458810,-500.0,0.00021274,2]
[379885108,1755431458819,-151.0,0.00021274,2]
[379885109,1755431458829,-1428.0,0.00021274,2]
[379885110,1755431458839,-500.0,0.00021274,2]
[379885111,1755431458849,-198.0,0.00021274,2]
[379885112,1755431458858,-151.0,0.00021274,2]
[379885113,1755431458868,-151.0,0.00021274,2]
[379885114,1755431458877,-153.244561,0.00021276,20]
[379885115,1755431458887,-3000.0,0.0002128,2]
[379885116,1755431458897,-151.0,0.00021282,2]
[379885117,1755431458907,-240.640564,0.00021282,2]
[379885118,1755431458916,-240.640564,0.00021282,2]
[379885119,1755431458925,-162.70618793,0.00021288,2]
[379885120,1755431458935,-150.06286568,0.00021288,2]
[379885121,1755431458944,-167.27283284,0.00021288,2]
[379885122,1755431458953,-300.80260306,0.00021289,2]
[379885123,1755431458962,-3000.0,0.0002129,2]
[379885124,1755431458972,-151.0,0.0002129,2]
[379885125,1755431458986,-193.534483,0.0002129,2]
[379885126,1755431458996,-151.0,0.0002129,2]
[379885127,1755431459006,-228.432245,0.0002129,2]
[379885128,1755431459016,-228.432245,0.0002129,2]
[379885129,1755431459027,-2990.699149,0.0002129,2]
[379885130,1755431459036,-151.0,0.0002129,2]
[379885131,1755431459046,-2990.699149,0.0002129,2]
[379885132,1755431459057,-151.0,0.0002129,2]
[379885133,1755431459067,-279.103583,0.0002129,2]
[379885134,1755431459077,-177.546223,0.0002129,2]
[379885135,1755431459087,-151.0,0.0002129,2]
[379885136,1755431459097,-151.0,0.0002129,2]
[379885137,1755431459106,-151.0,0.0002129,2]
[379885138,1755431459116,-151.0,0.0002129,2]
[379885139,1755431459125,-848.882309,0.0002129,2]
[379885140,1755431459135,-848.882309,0.0002129,2]
[379885141,1755431459144,-848.882309,0.0002129,2]
[379885142,1755431459154,-848.882309,0.0002129,2]
[379885143,1755431459163,-3000.0,0.000213,2]
[379885144,1755431459173,-165.391928,0.000213,2]
[379885145,1755431459183,-165.391928,0.000213,2]
[379885146,1755431459192,-151.0,0.000213,3]
[379885147,1755431459202,-3000.0,0.0002131,2]
[379885148,1755431459211,-3000.0,0.0002132,2]
[379885149,1755431459220,-151.0,0.0002132,2]
[379885150,1755431459231,-151.0,0.0002132,2]
[379885151,1755431459240,-151.0,0.0002132,2]
[379885152,1755431459250,-151.0,0.0002132,2]
[379885153,1755431459260,-151.0,0.0002132,2]
[379885154,1755431459270,-153.244561,0.00021328,3]
[379885155,1755431459279,-598.59843466,0.00021328,2]
[379885156,1755431459288,-15785.11634298,0.00021329,2]
[379885157,1755431459297,-3000.0,0.0002133,2]
[379885158,1755431459307,-37680.46015286,0.0002134,2]
[379885159,1755431459315,-151.0,0.0002134,2]
[379885160,1755431459323,-151.0,0.0002134,2]
[379885161,1755431459332,-3000.0,0.0002134,2]
[379885162,1755431459342,-715.40625,0.0002134,2]
[379885163,1755431459352,-715.40625,0.0002134,2]
[379885164,1755431459362,-151.0,0.0002134,2]
[379885165,1755431459371,-151.0,0.0002134,2]
[379885166,1755431459381,-151.0,0.0002134,2]
[379885168,1755431459391,-238.582471,0.0002134,2]
[379885170,1755431459400,-232.28563,0.0002134,2]
[379885171,1755431459410,-232.28563,0.0002134,2]
[379885172,1755431459419,-151.0,0.0002134,2]
[379885173,1755431459428,-172.695155,0.0002134,2]
[379885174,1755431459438,-172.695155,0.0002134,2]
[379885175,1755431459447,-246.388764,0.0002134,2]
[379885176,1755431459457,-246.388764,0.0002134,2]
[379885177,1755431459466,-151.0,0.0002134,2]
[379885178,1755431459475,-151.0,0.0002134,2]
[379885179,1755431459485,-151.0,0.0002134,2]
[379885180,1755431459494,-183.766946,0.0002134,2]
[379885181,1755431459503,-183.766946,0.0002134,2]
[379885182,1755431459512,-245.467757,0.0002134,2]
[379885183,1755431459529,-245.467757,0.0002134,2]
[379885184,1755431459556,-228.43261,0.0002134,2]
[379885185,1755431459570,-228.43261,0.0002134,2]
[379885186,1755431459582,-151.0,0.0002134,2]
[379885188,1755431459598,-151.0,0.0002134,2]
[379885190,1755431459609,-3000.0,0.0002135,2]
[379885191,1755431459618,-344.977784,0.0002135,2]
[379885193,1755431459628,-654.213815,0.0002135,2]
[379885195,1755431459638,-654.213815,0.0002135,2]
[379885196,1755431459647,-151.0,0.0002135,2]
[379885197,1755431459656,-151.0,0.0002135,2]
[379885198,1755431459666,-630.543429,0.0002135,2]
[379885200,1755431459675,-630.543429,0.0002135,2]
[379885202,1755431459684,-3000.0,0.0002136,2]
[379885203,1755431459693,-3000.0,0.0002137,2]
[379885204,1755431459703,-791.989699,0.0002137,2]
[379885205,1755431459712,-791.989699,0.0002137,2]
[379885207,1755431459722,-500.0,0.00021373,2]
[379885209,1755431459731,-500.0,0.00021373,2]
[379885210,1755431459740,-500.0,0.00021373,2]
[379885211,1755431459750,-500.0,0.00021373,2]
[379885212,1755431459759,-500.12747643,0.00021373,2]
[379885213,1755431459769,-500.0,0.00021373,2]
[379885214,1755431459778,-500.0,0.00021373,2]
[379885215,1755431459787,-500.0,0.00021373,2]
[379885216,1755431459796,-3000.0,0.0002138,2]
[379885217,1755431459806,-153.244561,0.00021383,7]
[379885218,1755431459815,-441.6,0.00021383,3]
[379885219,1755431459824,-3000.0,0.0002139,2]
[379885220,1755431459833,-3000.0,0.000214,2]
[379885221,1755431459842,-1407.838753,0.000214,2]
[379885222,1755431459851,-1407.838753,0.000214,2]
[379885223,1755431459861,-150.0,0.000214,5]
[379885224,1755431459870,-151.0,0.000214,2]
[379885225,1755431459879,-151.0,0.000214,2]
[379885226,1755431459888,-151.0,0.000214,2]
[379885227,1755431459897,-354.573809,0.000214,10]
[379885228,1755431459907,-245.467757,0.000214,2]
[379885229,1755431459916,-245.467757,0.000214,2]
[379885230,1755431459925,-151.0,0.000214,2]
[379885231,1755431459934,-151.0,0.000214,2]
[379885232,1755431459944,-3000.0,0.0002141,2]
[379885233,1755431459953,-151.0,0.0002141,2]
[379885234,1755431459962,-151.0,0.0002141,2]
[379885235,1755431459972,-151.0,0.0002141,2]
[379885236,1755431459984,-626.316699,0.0002141,2]
[379885237,1755431459994,-3000.0,0.0002142,2]
[379885238,1755431460003,-1209.46,0.00021428,2]
[379885239,1755431460012,-480.0,0.00021428,2]
[379885240,1755431460021,-480.0,0.00021428,2]
[379885241,1755431460031,-515.69,0.00021428,2]
[379885242,1755431460040,-480.0,0.00021428,2]
[379885243,1755431460049,-604.72,0.00021428,2]
[379885244,1755431460060,-1658.55,0.00021428,2]
[379885245,1755431460070,-2406.12,0.00021428,2]
[379885246,1755431460080,-480.0,0.00021428,2]
[379885247,1755431460090,-525.26,0.00021428,2]
[379885248,1755431460100,-575.54,0.00021428,2]
[379885249,1755431460109,-1605.16,0.00021428,2]
[379885250,1755431460119,-1584.95,0.00021428,2]
[379885251,1755431460128,-562.34,0.00021428,2]
[379885252,1755431460137,-4000.0,0.00021429,4]
[379885253,1755431460147,-570.77,0.00021429,2]
[379885254,1755431460156,-1015.99,0.00021429,2]
[379885255,1755431460165,-489.24,0.00021429,2]
[379885256,1755431460175,-508.19,0.00021429,2]
[379885257,1755431460184,-480.0,0.00021429,2]
[379885258,1755431460194,-545.8,0.00021429,2]
[379885259,1755431460205,-480.0,0.00021429,2]
[379885260,1755431460215,-831.87,0.00021429,2]
[379885261,1755431460226,-480.0,0.00021429,2]
[379885262,1755431460236,-826.56,0.00021429,2]
[379885263,1755431460245,-480.0,0.00021429,2]
[379885264,1755431460255,-480.0,0.00021429,2]
[379885265,1755431460264,-480.0,0.00021429,2]
[379885266,1755431460274,-599.29,0.00021429,2]
[379885267,1755431460283,-480.0,0.00021429,2]
[379885268,1755431460292,-480.0,0.00021429,2]
[379885269,1755431460302,-2876.96,0.00021429,2]
[379885270,1755431460312,-724.27,0.00021429,2]
[379885271,1755431460321,-480.0,0.00021429,2]
[379885272,1755431460331,-480.0,0.00021429,2]
[379885273,1755431460340,-480.0,0.00021429,2]
[379885274,1755431460350,-480.0,0.00021429,2]
[379885275,1755431460359,-480.0,0.00021429,2]
[379885276,1755431460368,-616.52,0.00021429,2]
[379885277,1755431460378,-4039.42,0.00021429,2]
[379885278,1755431460387,-824.71,0.00021429,2]
[379885279,1755431460397,-3000.0,0.0002143,2]
[379885280,1755431460406,-480.0,0.0002143,2]
[379885281,1755431460416,-941.24,0.0002143,2]
[379885282,1755431460425,-3482.407558,0.0002144,2]
[379885283,1755431460435,-153.244561,0.00021447,2]
[379885284,1755431460444,-151.0,0.00021475,2]
[379885285,1755431460453,-153.244561,0.00021475,4]
[379885286,1755431460464,-500.0,0.00021484,2]
[379885287,1755431460474,-593.24961039,0.00021484,2]
[379885288,1755431460484,-522.748646,0.00021484,2]
[379885289,1755431460494,-507.52642282,0.00021484,2]
[379885290,1755431460595,-500.0,0.00021484,2]
[379885291,1755431460607,-500.0,0.00021484,2]
[379885292,1755431460616,-151.0,0.00021484,2]
[379885293,1755431460625,-151.0,0.00021484,2]
[379885294,1755431460635,-325.433859,0.00021484,2]
[379885295,1755431460645,-325.433859,0.00021484,2]
[379885296,1755431460654,-9444.22848128,0.000215,2]
[379885297,1755431460663,-151.0,0.000215,2]
[379885298,1755431460672,-151.0,0.000215,2]
[379885299,1755431460681,-970.7564,0.000215,2]
[379885300,1755431460691,-848.882309,0.000215,2]
[379885301,1755431460700,-848.882309,0.000215,2]
[379885302,1755431460710,-480.0,0.00021517,2]
[379885303,1755431460719,-940.84,0.00021517,2]
[379885304,1755431460728,-724.58,0.00021517,2]
[379885305,1755431460738,-480.0,0.00021517,2]
[379885306,1755431460747,-480.0,0.00021517,2]
[379885307,1755431460756,-6892.33,0.00021517,2]
[379885308,1755431460766,-1970.3,0.00021517,2]
[379885309,1755431460776,-860.81,0.00021517,2]
[379885310,1755431460785,-633.39,0.00021517,2]
[379885311,1755431460795,-1707.02,0.00021517,2]
[379885312,1755431460805,-480.0,0.00021518,2]
[379885313,1755431460814,-151.0,0.00021518,2]
[379885314,1755431460823,-2990.699149,0.00021518,2]
[379885315,1755431460833,-2990.699149,0.00021518,2]
[379885316,1755431460843,-480.0,0.00021518,2]
[379885317,1755431460852,-632.8,0.00021518,2]
[379885318,1755431460862,-480.0,0.00021518,2]
[379885319,1755431460871,-480.0,0.00021518,2]
[379885320,1755431460881,-480.0,0.00021518,2]
[379885321,1755431460890,-480.0,0.00021518,2]
[379885322,1755431460900,-480.0,0.00021518,2]
[379885323,1755431460909,-503.26,0.00021518,2]
[379885324,1755431460918,-480.0,0.00021518,2]
[379885325,1755431460927,-480.0,0.00021518,2]
[379885326,1755431460937,-1077.88,0.00021518,2]
[379885327,1755431460946,-480.0,0.00021518,2]
[379885328,1755431460955,-593.43,0.00021518,2]
[379885330,1755431460965,-480.0,0.00021518,2]
[379885331,1755431460974,-795.7,0.00021518,2]
[379885332,1755431460987,-480.0,0.00021518,2]
[379885333,1755431460997,-460.0,0.00021518,2]
[379885334,1755431461006,-480.0,0.00021518,2]
[379885335,1755431461015,-603.59,0.00021518,2]
[379885336,1755431461025,-480.0,0.00021518,2]
[379885337,1755431461034,-480.0,0.00021518,2]
[379885338,1755431461044,-480.0,0.00021518,2]
[379885339,1755431461054,-7702.63581593,0.00021518,2]
[379885340,1755431461374,265.04319423,0.0001941,2]
[379885341,1755431461544,-732.36092046,0.00018507,2]
[379885342,1755431462063,-1252.65925509,0.00018507,2]
[379885343,1755431462330,-1389.54803291,0.00018507,2]
[379885344,1755431462701,-4549.10000001,0.00018507,2]
[379885345,1755431465199,-2076.33179153,0.00018507,2]
[379885346,1755431465208,-214.95680577,0.0001941,2]
[379885347,1755431465218,-480.0,0.0001941,2]
[379885348,1755431465228,-515.7790136,0.0001941,2]
[379885349,1755431465237,-480.0,0.0001941,2]
[379885350,1755431465248,-480.0,0.0001951,2]
[379885351,1755431465257,-480.0,0.0001951,2]
[379885352,1755431465267,-480.0,0.00019511,2]
[379885353,1755431465277,-480.0,0.00019511,2]
[379885354,1755431465286,-480.0,0.00019511,2]
[379885355,1755431465296,-480.0,0.00019511,2]
[379885356,1755431465305,-500.0,0.00019573,2]
[379885357,1755431465315,-480.0,0.000196,2]
[379885358,1755431465324,-480.0,0.000196,2]
[379885359,1755431465334,-480.0,0.00019612,2]
[379885360,1755431465342,-480.0,0.00019684,2]
[379885361,1755431465352,-480.0,0.00019785,2]
[379885362,1755431465362,-480.0,0.00019785,2]
[379885363,1755431465371,-480.0,0.00019785,2]
[379885364,1755431465381,-480.0,0.00019874,2]
[379885365,1755431465391,-480.0,0.00019874,2]
[379885366,1755431465400,-460.0,0.00019874,2]
[379885367,1755431465410,-480.0,0.00019886,2]
[379885368,1755431465420,-3967.63935953,0.000199,2]
[379885369,1755431465429,-480.0,0.00020059,2]
[379885370,1755431465439,-726.42208039,0.00020121,2]
[379885371,1755431465451,-480.0,0.00020148,2]
[379885372,1755431465460,-480.0,0.00020148,2]
[379885373,1755431465470,-480.0,0.00020333,2]
[379885374,1755431465479,-3967.63935942,0.00020403,2]
[379885375,1755431465489,-480.0,0.00020422,2]
[379885376,1755431465499,-624.47402307,0.00020422,2]
[379885377,1755431465509,-500.0,0.00020473,2]
[379885378,1755431465518,-480.0,0.00020607,2]
[379885379,1755431465528,-480.0,0.00020881,2]
[379885380,1755431465537,-3967.63935942,0.00020907,2]
[379885381,1755431465546,-151.0,0.00021,2]
[379885382,1755431465555,-151.0,0.00021,2]
[379885383,1755431465565,-151.0,0.00021,2]
[379885384,1755431465574,-1000.0,0.00021021,2]
[379885385,1755431465584,-480.0,0.00021155,2]
[379885386,1755431465594,-151.0,0.00021274,2]
[379885387,1755431465603,-3967.63935942,0.0002141,2]
[379885388,1755431465612,-261.54,0.00021429,2]
[379885389,1755431465622,-1636.87418407,0.00021518,2]
[379885390,1755431465631,-516.86597887,0.00021521,2]
[379885391,1755431465641,-228.432245,0.0002153,2]
[379885392,1755431465650,-228.432245,0.0002153,2]
[379885393,1755431465660,-151.0,0.0002153,2]
[379885394,1755431465669,-172.609599,0.0002153,2]
[379885395,1755431465679,-480.0,0.0002153,2]
[379885396,1755431465689,-480.0,0.0002153,2]
[379885397,1755431465699,-662.9,0.0002153,2]
[379885398,1755431465708,-480.0,0.0002153,2]
[379885399,1755431465718,-480.0,0.0002153,2]
[379885400,1755431465727,-183.766946,0.0002153,2]
[379885401,1755431465736,-183.766946,0.0002153,2]
[379885402,1755431465746,-5084.13,0.0002153,2]
[379885403,1755431465755,-228.43261,0.0002153,2]
[379885404,1755431465764,-228.43261,0.0002153,2]
[379885405,1755431465774,-1169.93,0.0002153,2]
[379885406,1755431465783,-921.6,0.0002153,2]
[379885407,1755431465793,-480.0,0.0002153,2]
[379885408,1755431465802,-151.0,0.00021531,2]
[379885409,1755431465811,-153.244561,0.00021532,3]
[379885410,1755431465820,-441.6,0.00021538,3]
[379885411,1755431465829,-151.0,0.00021539,2]
[379885412,1755431465838,-151.0,0.00021539,2]
[379885413,1755431465847,-480.0,0.00021539,2]
[379885414,1755431465856,-583.91,0.00021539,2]
[379885415,1755431465865,-414.27019039,0.00021539,2]
[379885416,1755431465874,-1934.34,0.00021539,2]
[379885417,1755431465885,-480.0,0.00021539,2]
[379885418,1755431465895,-173.903644,0.00021541,2]
[379885419,1755431465904,-173.903644,0.00021541,2]
[379885420,1755431465913,-229.681265,0.00021541,2]
[379885421,1755431465922,-151.0,0.00021541,2]
[379885422,1755431465932,-151.0,0.00021541,2]
[379885423,1755431465941,-151.0,0.00021541,2]
[379885424,1755431465950,-1007.503526,0.00021541,2]
[379885425,1755431466048,-1007.503526,0.00021541,2]
[379885426,1755431466060,-291.857765,0.00021541,2]
[379885427,1755431466070,-151.0,0.00021541,2]
[379885428,1755431466079,-291.857765,0.00021541,2]
[379885429,1755431466089,-206.0,0.00021541,2]
[379885430,1755431466098,-151.0,0.00021542,2]
[379885431,1755431466108,-155.215154,0.00021542,2]
[379885432,1755431466117,-151.0,0.00021543,2]
[379885433,1755431466128,-151.0,0.00021543,2]
[379885434,1755431466138,-151.0,0.00021543,2]
[379885435,1755431466149,-151.0,0.00021543,2]
[379885436,1755431466158,-165.391928,0.00021543,2]
[379885437,1755431466168,-165.391928,0.00021543,2]
[379885438,1755431466177,-2362.3,0.00021543,2]
[379885439,1755431466186,-151.0,0.00021548,2]
[379885440,1755431466195,-300.51432598,0.00021548,2]
[379885441,1755431466204,-151.0,0.00021548,2]
[379885442,1755431466214,-1428.0,0.00021548,2]
[379885443,1755431466223,-472.8275706,0.00021548,2]
[379885444,1755431466233,-151.0,0.00021548,2]
[379885445,1755431466242,-198.0,0.00021548,2]
[379885446,1755431466252,-198.0,0.00021548,2]
[379885447,1755431466261,-207.0,0.0002155,2]
[379885448,1755431466271,-151.0,0.00021557,2]
[379885449,1755431466280,-151.0,0.00021568,2]
[379885450,1755431466290,-246.388764,0.00021568,2]
[379885451,1755431466299,-246.388764,0.00021568,2]
[379885452,1755431466308,-151.274819,0.00021568,2]
[379885453,1755431466318,-151.0,0.00021568,2]
[379885454,1755431466327,-151.0,0.00021568,2]
[379885455,1755431466337,-231.55571979,0.00021568,2]
[379885456,1755431466346,-1474.5568194,0.00021568,2]
[379885457,1755431466355,-503.3733671,0.00021568,2]
[379885458,1755431466365,-1500.0,0.00021568,2]
[379885459,1755431466374,-1016.9254129,0.00021568,2]
[379885460,1755431466384,-1175.43519887,0.00021568,2]
[379885461,1755431466393,-181.69236082,0.00021568,2]
[379885462,1755431466403,-831.54512723,0.00021568,2]
[379885463,1755431466415,-1500.0,0.00021568,2]
[379885464,1755431466425,-1500.0,0.00021568,2]
[379885465,1755431466434,-1500.0,0.00021568,2]
[379885466,1755431466446,-279.76810566,0.00021568,2]
[379885467,1755431466456,-1396.79666391,0.00021568,2]
[379885468,1755431466465,-1500.0,0.00021568,2]
[379885469,1755431466474,-1500.0,0.00021568,2]
[379885470,1755431466483,-1500.0,0.00021568,2]
[379885471,1755431466492,-1500.0,0.00021568,2]
[379885472,1755431466502,-1500.0,0.00021568,2]
[379885473,1755431466511,-1002.60512625,0.00021568,2]
[379885474,1755431466520,-502.82440237,0.00021568,2]
[379885475,1755431466529,-1500.0,0.00021568,2]
[379885476,1755431466539,-1500.0,0.00021568,2]
[379885477,1755431466548,-1500.0,0.00021568,2]
[379885478,1755431466558,-169.60984033,0.00021568,2]
[379885479,1755431466568,-1500.0,0.00021568,2]
[379885480,1755431466578,-1500.0,0.00021568,2]
[379885481,1755431466587,-160.39208283,0.00021568,2]
[379885482,1755431466597,-501.5074335,0.00021568,2]
[379885483,1755431466606,-1105.04189955,0.00021568,2]
[379885484,1755431466615,-1544.99615329,0.00021568,2]
[379885485,1755431466624,-1500.0,0.00021568,2]
[379885486,1755431466633,-503.54189409,0.00021568,2]
[379885487,1755431466642,-661.09194451,0.00021568,2]
[379885488,1755431466651,-1500.0,0.00021568,2]
[379885489,1755431466660,-245.467757,0.00021573,2]
[379885490,1755431466669,-245.467757,0.00021573,2]
[379885491,1755431466678,-151.0,0.00021573,2]
[379885492,1755431466689,-151.0,0.00021573,2]
[379885493,1755431466699,-153.244561,0.0002158,7]
[379885494,1755431466708,-151.0,0.000216,2]
[379885495,1755431466717,-151.0,0.000216,2]
[379885496,1755431466727,-151.0,0.000216,2]
[379885497,1755431466736,-258.796786,0.000216,2]
[379885498,1755431466745,-151.0,0.000216,2]
[379885499,1755431466753,-151.0,0.000216,2]
[379885500,1755431466763,-151.0,0.000216,2]
[379885501,1755431466772,-151.0,0.000216,2]
[379885502,1755431466781,-151.0,0.000216,2]
[379885503,1755431466789,-715.40625,0.000216,2]
[379885504,1755431466799,-715.40625,0.000216,2]
[379885505,1755431466808,-151.0,0.000216,2]
[379885506,1755431466818,-193.534483,0.000216,2]
[379885507,1755431466827,-151.265815,0.000216,2]
[379885508,1755431466836,-151.0,0.000216,2]
[379885509,1755431466845,-232.28563,0.000216,2]
[379885510,1755431466854,-232.28563,0.000216,2]
[379885511,1755431466863,-151.0,0.000216,2]
[379885512,1755431466872,-151.0,0.000216,2]
[379885513,1755431466882,-223.019689,0.000216,2]
[379885514,1755431466891,-164.401517,0.000216,7]
[379885515,1755431466899,-172.695155,0.000216,2]
[379885516,1755431466908,-172.695155,0.000216,2]
[379885517,1755431466917,-246.388764,0.000216,2]
[379885518,1755431466926,-246.388764,0.000216,2]
[379885519,1755431466935,-1407.838753,0.000216,2]
[379885520,1755431466944,-1407.838753,0.000216,2]
[379885521,1755431466953,-151.0,0.000216,2]
[379885522,1755431466962,-151.51889,0.000216,2]
[379885523,1755431466971,-848.882309,0.000216,2]
[379885524,1755431466984,-848.882309,0.000216,2]
[379885525,1755431466993,-59212.76248985,0.000216,3]
[379885526,1755431467003,-153.244561,0.00021622,20]
[379885527,1755431467012,-500.0,0.00021643,2]
[379885528,1755431467022,-360.0,0.0002165,2]
[379885529,1755431467035,-441.6,0.00021693,3]
[379885530,1755431467046,-151.0,0.000217,2]
[379885531,1755431467055,-12682.46447135,0.000217,3]
[379885532,1755431467064,-344.977784,0.000217,2]
[379885533,1755431467074,-654.213815,0.000217,2]
[379885534,1755431467083,-654.213815,0.000217,2]
[379885535,1755431467092,-151.0,0.000217,2]
[379885536,1755431467101,-152.753718,0.000217,2]
[379885537,1755431467111,-259.739138,0.000217,2]
[379885538,1755431467121,-228.432245,0.000217,2]
[379885539,1755431467130,-228.432245,0.000217,2]
[379885540,1755431467139,-2990.699149,0.000217,2]
[379885541,1755431467149,-151.0,0.000217,2]
[379885542,1755431467158,-2990.699149,0.000217,2]
[379885543,1755431467168,-630.543429,0.000217,2]
[379885544,1755431467177,-630.543429,0.000217,2]
[379885545,1755431467186,-153.244561,0.000217,4]
[379885546,1755431467195,-417.15472785,0.000217,3]
[379885547,1755431467204,-215.71995163,0.000217,3]
[379885548,1755431467213,-375.77065697,0.000217,3]
[379885549,1755431467223,-160.0,0.000217,3]
[379885550,1755431467232,-480.0,0.00021702,2]
[379885551,1755431467242,-480.0,0.00021702,2]
[379885552,1755431467251,-480.0,0.00021702,2]
[379885553,1755431467260,-604.72,0.00021702,2]
[379885554,1755431467270,-1658.55,0.00021702,2]
[379885555,1755431467279,-2406.12,0.00021702,2]
[379885556,1755431467289,-480.0,0.00021702,2]
[379885557,1755431467300,-575.54,0.00021702,2]
[379885558,1755431467309,-1605.16,0.00021702,2]
[379885559,1755431467319,-1584.95,0.00021702,2]
[379885560,1755431467328,-562.34,0.00021702,2]
[379885561,1755431467337,-570.77,0.00021703,2]
[379885562,1755431467346,-1015.99,0.00021703,2]
[379885563,1755431467356,-489.24,0.00021703,2]
[379885564,1755431467365,-508.19,0.00021703,2]
[379885565,1755431467374,-480.0,0.00021703,2]
[379885566,1755431467383,-545.8,0.00021703,2]
[379885567,1755431467393,-480.0,0.00021703,2]
[379885568,1755431467402,-831.87,0.00021703,2]
[379885569,1755431467411,-480.0,0.00021703,2]
[379885570,1755431467421,-826.56,0.00021703,2]
[379885571,1755431467430,-176.87773345,0.00021703,2]
[379885572,1755431467439,-480.0,0.00021703,2]
[379885573,1755431467448,-480.0,0.00021703,2]
[379885574,1755431467458,-599.29,0.00021703,2]
[379885575,1755431467467,-480.0,0.00021703,2]
[379885576,1755431467476,-480.0,0.00021703,2]
[379885577,1755431467485,-2876.96,0.00021703,2]
[379885578,1755431467494,-724.27,0.00021703,2]
[379885579,1755431467584,-480.0,0.00021703,2]
[379885580,1755431467594,-480.0,0.00021703,2]
[379885581,1755431467603,-480.0,0.00021703,2]
[379885582,1755431467613,-480.0,0.00021703,2]
[379885583,1755431467622,-480.0,0.00021703,2]
[379885584,1755431467633,-616.52,0.00021703,2]
[379885585,1755431467642,-4039.42,0.00021703,2]
[379885586,1755431467651,-824.71,0.00021703,2]
[379885587,1755431467661,-183.766946,0.00021704,2]
[379885588,1755431467671,-183.766946,0.00021704,2]
[379885589,1755431467680,-480.0,0.00021704,2]